[Event "*** Titled Tuesday Blitz"]
[Site "Chess.com"]
[Date "2020.01.07"]
[Round "5"]
[White "Gareth-Bale11"]
[Black "ChessyInstinct"]
[Result "1-0"]
[WhiteElo "2730"]
[BlackElo "2466"]
[TimeControl "180+2"]
[EndTime "14:10:54 PST"]
[Termination "Gareth-Bale11 won by checkmate"]

1. d4 {[%clk 0:03:01.9]} 1... d5 {[%clk 0:03:00.9]} 2. c4 {[%clk 0:03:02.5]}
2... c6 {[%clk 0:03:01.7]} 3. Nf3 {[%clk 0:03:03.5]} 3... Nf6 {[%clk 0:03:02.7]}
4. e3 {[%clk 0:03:03.7]} 4... e6 {[%clk 0:03:03.8]} 5. b3 {[%clk 0:03:03.1]}
5... Nbd7 {[%clk 0:03:01.7]} 6. Bb2 {[%clk 0:03:04.1]} 6... Bd6 {[%clk
0:03:03.3]} 7. Nbd2 {[%clk 0:03:04.2]} 7... b6 {[%clk 0:03:03.7]} 8. Bd3 {[%clk
0:03:05.3]} 8... Bb7 {[%clk 0:03:04.9]} 9. O-O {[%clk 0:03:06.1]} 9... c5 {[%clk
0:03:02.5]} 10. Qe2 {[%clk 0:03:06.5]} 10... O-O {[%clk 0:03:03.3]} 11. Ne5
{[%clk 0:03:07.6]} 11... Rc8 {[%clk 0:02:47.6]} 12. cxd5 {[%clk 0:02:57]} 12...
Nxd5 {[%clk 0:02:34.6]} 13. Ndc4 {[%clk 0:02:54.7]} 13... Bxe5 {[%clk
0:02:25.4]} 14. dxe5 {[%clk 0:02:54.2]} 14... Qe7 {[%clk 0:02:15.6]} 15. Nd6
{[%clk 0:02:52.7]} 15... Rb8 {[%clk 0:02:15.5]} 16. Qh5 {[%clk 0:02:47.1]} 16...
g6 {[%clk 0:02:08.8]} 17. Qh6 {[%clk 0:02:45.2]} 17... Nb4 {[%clk 0:02:06.9]}
18. Be2 {[%clk 0:02:42.5]} 18... Ba8 {[%clk 0:01:51.2]} 19. a3 {[%clk
0:02:35.5]} 19... Nd5 {[%clk 0:01:51.1]} 20. Ne4 {[%clk 0:02:34.3]} 20... Rfd8
{[%clk 0:01:43.6]} 21. Ng5 {[%clk 0:02:33.6]} 21... Nf8 {[%clk 0:01:43.6]} 22.
Rac1 {[%clk 0:02:28.4]} 22... Qc7 {[%clk 0:01:36.6]} 23. Rc4 {[%clk 0:02:28]}
23... Ne7 {[%clk 0:01:34.5]} 24. Bg4 {[%clk 0:02:22]} 24... Bd5 {[%clk
0:01:25.1]} 25. Rf4 {[%clk 0:02:21.3]} 25... Nf5 {[%clk 0:01:17.4]} 26. Bxf5
{[%clk 0:02:22]} 26... exf5 {[%clk 0:01:19.3]} 27. e6 {[%clk 0:01:55.3]} 27...
fxe6 {[%clk 0:01:17.7]} 28. Bf6 {[%clk 0:01:54]} 28... e5 {[%clk 0:00:58]} 29.
Rh4 {[%clk 0:01:51.8]} 29... Re8 {[%clk 0:00:52.7]} 30. h3 {[%clk 0:00:59.9]}
30... Rb7 {[%clk 0:00:50.3]} 31. f4 {[%clk 0:00:57.9]} 31... exf4 {[%clk
0:00:40.6]} 32. Rfxf4 {[%clk 0:00:50.8]} 32... Rxe3 {[%clk 0:00:26.2]} 33. Nxh7
{[%clk 0:00:34.8]} 33... Qxh7 {[%clk 0:00:18.1]} 34. Qg5 {[%clk 0:00:35.9]}
34... Re1+ {[%clk 0:00:05.9]} 35. Kf2 {[%clk 0:00:26.8]} 35... Rbe7 {[%clk
0:00:07.3]} 36. Rxh7 {[%clk 0:00:09.5]} 36... R7e2+ {[%clk 0:00:08.4]} 37. Kg3
{[%clk 0:00:11]} 37... Rxg2+ {[%clk 0:00:09.5]} 38. Kh4 {[%clk 0:00:12.4]} 38...
Kxh7 {[%clk 0:00:04.2]} 39. Rg4 {[%clk 0:00:06]} 39... Rxg4+ {[%clk 0:00:02.6]}
40. hxg4 {[%clk 0:00:07.1]} 40... Rh1+ {[%clk 0:00:03.9]} 41. Kg3 {[%clk
0:00:08.5]} 41... Rg1+ {[%clk 0:00:04.8]} 42. Kf2 {[%clk 0:00:10]} 42... Rxg4
{[%clk 0:00:03.4]} 43. Qe3 {[%clk 0:00:11.1]} 43... Rg2+ {[%clk 0:00:03.9]} 44.
Kf1 {[%clk 0:00:12.4]} 44... Ne6 {[%clk 0:00:05.1]} 45. Qh3+ {[%clk 0:00:13]}
45... Kg8 {[%clk 0:00:05]} 46. Qh8+ {[%clk 0:00:14.2]} 46... Kf7 {[%clk
0:00:06.7]} 47. Be5 {[%clk 0:00:16]} 47... Be4 {[%clk 0:00:03.9]} 48. Qf6+
{[%clk 0:00:16.9]} 48... Ke8 {[%clk 0:00:03.8]} 49. Qxe6+ {[%clk 0:00:18.8]}
49... Kd8 {[%clk 0:00:05.7]} 50. Qd6+ {[%clk 0:00:19.6]} 50... Ke8 {[%clk
0:00:06.4]} 51. Qc7 {[%clk 0:00:20.7]} 51... Rd2 {[%clk 0:00:06.6]} 52. Bd6
{[%clk 0:00:21.6]} 52... Rxd6 {[%clk 0:00:06.9]} 53. Qxd6 {[%clk 0:00:22.1]}
53... Kf7 {[%clk 0:00:07.3]} 54. Kf2 {[%clk 0:00:22.9]} 54... g5 {[%clk
0:00:08.1]} 55. b4 {[%clk 0:00:23.9]} 55... cxb4 {[%clk 0:00:08.9]} 56. axb4
{[%clk 0:00:25.8]} 56... a5 {[%clk 0:00:10.4]} 57. b5 {[%clk 0:00:26.4]} 57...
a4 {[%clk 0:00:10.6]} 58. Qxb6 {[%clk 0:00:27.6]} 58... a3 {[%clk 0:00:12.1]}
59. Qa7+ {[%clk 0:00:29]} 59... Kg6 {[%clk 0:00:12.4]} 60. Qxa3 {[%clk
0:00:30.9]} 60... Kh5 {[%clk 0:00:14.3]} 61. b6 {[%clk 0:00:31.9]} 61... Kg4
{[%clk 0:00:14.5]} 62. Qg3+ {[%clk 0:00:32.2]} 62... Kh5 {[%clk 0:00:15.7]} 63.
Qc7 {[%clk 0:00:33.4]} 63... Kg4 {[%clk 0:00:16.6]} 64. b7 {[%clk 0:00:34.9]}
64... f4 {[%clk 0:00:18]} 65. b8=Q {[%clk 0:00:35.7]} 65... Bf5 {[%clk
0:00:19.9]} 66. Qbd8 {[%clk 0:00:36.3]} 66... Be6 {[%clk 0:00:19.8]} 67. Qe5
{[%clk 0:00:37.1]} 67... Bf5 {[%clk 0:00:20.9]} 68. Qee7 {[%clk 0:00:38.4]}
68... Kh3 {[%clk 0:00:20.4]} 69. Qxg5 {[%clk 0:00:40.3]} 69... Bg4 {[%clk
0:00:21.5]} 70. Qh4# {[%clk 0:00:41.6]} 1-0

[Event "*** Titled Tuesday Blitz"]
[Site "Chess.com"]
[Date "2020.01.07"]
[Round "5"]
[White "tigra"]
[Black "Benjoneliere44"]
[Result "1-0"]
[WhiteElo "2766"]
[BlackElo "2554"]
[TimeControl "180+2"]
[EndTime "14:10:56 PST"]
[Termination "tigra won by resignation"]

1. e4 {[%clk 0:03:01.9]} 1... c5 {[%clk 0:03:00.8]} 2. Nf3 {[%clk 0:03:02.1]}
2... d6 {[%clk 0:03:02.2]} 3. d4 {[%clk 0:02:59.2]} 3... cxd4 {[%clk 0:03:04.1]}
4. Nxd4 {[%clk 0:03:01.1]} 4... Nf6 {[%clk 0:03:04.7]} 5. Nc3 {[%clk 0:03:02.7]}
5... g6 {[%clk 0:03:06.2]} 6. Be3 {[%clk 0:03:02.1]} 6... Bg7 {[%clk 0:02:59.9]}
7. f3 {[%clk 0:03:03.4]} 7... O-O {[%clk 0:02:58.6]} 8. Qd2 {[%clk 0:03:04.8]}
8... Nc6 {[%clk 0:02:57.3]} 9. Bc4 {[%clk 0:03:06.4]} 9... Bd7 {[%clk
0:02:57.4]} 10. O-O-O {[%clk 0:03:06.2]} 10... Rc8 {[%clk 0:02:57.5]} 11. Be2
{[%clk 0:03:07.4]} 11... Ne5 {[%clk 0:02:55.4]} 12. g4 {[%clk 0:03:06.8]} 12...
Nc4 {[%clk 0:02:19.2]} 13. Bxc4 {[%clk 0:03:07.2]} 13... Rxc4 {[%clk 0:02:21.1]}
14. h4 {[%clk 0:03:01.7]} 14... h5 {[%clk 0:02:20.2]} 15. gxh5 {[%clk
0:03:01.4]} 15... Nxh5 {[%clk 0:02:20.5]} 16. Rhg1 {[%clk 0:03:02.5]} 16... Qa5
{[%clk 0:02:14.3]} 17. Kb1 {[%clk 0:02:47]} 17... Rfc8 {[%clk 0:02:07]} 18. Nde2
{[%clk 0:02:42.3]} 18... Rxc3 {[%clk 0:01:51.7]} 19. Nxc3 {[%clk 0:02:18]} 19...
Rxc3 {[%clk 0:01:45.1]} 20. bxc3 {[%clk 0:02:15.3]} 20... Be6 {[%clk 0:01:39.8]}
21. c4 {[%clk 0:02:12.5]} 21... Bc3 {[%clk 0:01:38.4]} 22. Qxc3 {[%clk
0:01:44.2]} 22... Qxc3 {[%clk 0:01:40.3]} 23. Rd3 {[%clk 0:01:45.9]} 23... Qxc4
{[%clk 0:01:37.1]} 24. a3 {[%clk 0:01:47.2]} 24... Nf6 {[%clk 0:01:21.6]} 25.
Bd4 {[%clk 0:01:47.8]} 25... Nd7 {[%clk 0:01:17.2]} 26. h5 {[%clk 0:01:44.3]}
26... Qb5+ {[%clk 0:01:18.2]} 27. Kc1 {[%clk 0:01:44.6]} 27... Qxh5 {[%clk
0:01:19.3]} 28. Bxa7 {[%clk 0:01:45.5]} 28... Ne5 {[%clk 0:01:19]} 29. Rc3
{[%clk 0:01:46.7]} 29... Nxf3 {[%clk 0:01:18.7]} 30. Rd1 {[%clk 0:01:48.6]}
30... Qa5 {[%clk 0:01:13.7]} 31. Rxf3 {[%clk 0:01:48.3]} 31... Qxa7 {[%clk
0:01:14.3]} 32. Rc3 {[%clk 0:01:50.1]} 32... Qa5 {[%clk 0:01:11.3]} 33. Kb2
{[%clk 0:01:50.5]} 33... b5 {[%clk 0:01:09.3]} 34. Rd4 {[%clk 0:01:47.5]} 34...
g5 {[%clk 0:01:10.1]} 35. Rb4 {[%clk 0:01:45.9]} 35... g4 {[%clk 0:01:10]} 36.
e5 {[%clk 0:01:46.5]} 36... dxe5 {[%clk 0:01:08.8]} 37. Rc5 {[%clk 0:01:47.6]}
37... g3 {[%clk 0:00:59.3]} 38. Rxe5 {[%clk 0:01:47.9]} 38... Qc7 {[%clk
0:00:55.2]} 39. Rbxb5 {[%clk 0:01:48.8]} 39... f6 {[%clk 0:00:27.4]} 40. Rxe6
{[%clk 0:01:44.8]} 40... g2 {[%clk 0:00:28.6]} 41. Re1 {[%clk 0:01:42.2]} 41...
Kf7 {[%clk 0:00:24.9]} 42. a4 {[%clk 0:01:02.8]} 42... Qg3 {[%clk 0:00:23.9]}
43. Rc1 {[%clk 0:00:56.8]} 43... g1=Q {[%clk 0:00:24.1]} 44. Rxg1 {[%clk
0:00:57.7]} 44... Qxg1 {[%clk 0:00:26]} 45. a5 {[%clk 0:00:59.4]} 45... Qd4+
{[%clk 0:00:27.1]} 46. Kb3 {[%clk 0:01:00.5]} 46... Qe3+ {[%clk 0:00:26.2]} 47.
Kb4 {[%clk 0:00:58.2]} 47... Qd2+ {[%clk 0:00:26.4]} 48. Kb3 {[%clk 0:00:58.8]}
48... Qe3+ {[%clk 0:00:21.9]} 49. Kb4 {[%clk 0:00:59]} 49... Qe4+ {[%clk
0:00:21.5]} 50. c4 {[%clk 0:00:59.8]} 50... f5 {[%clk 0:00:23.4]} 51. a6 {[%clk
0:00:59.8]} 51... f4 {[%clk 0:00:24.8]} 52. a7 {[%clk 0:00:53.5]} 52... f3
{[%clk 0:00:25.7]} 53. Rd5 {[%clk 0:00:53.3]} 53... Qb1+ {[%clk 0:00:21.5]} 54.
Ka5 {[%clk 0:00:51.3]} 54... Qa2+ {[%clk 0:00:20.9]} 55. Kb6 {[%clk 0:00:52.2]}
55... f2 {[%clk 0:00:19.9]} 56. Rf5+ {[%clk 0:00:48.5]} 56... Ke6 {[%clk
0:00:21.1]} 57. Rf4 {[%clk 0:00:45.8]} 57... Qb3+ {[%clk 0:00:19]} 58. Kc6
{[%clk 0:00:42.5]} 58... Qa4+ {[%clk 0:00:19.9]} 59. Kb6 {[%clk 0:00:43.2]}
59... Qb4+ {[%clk 0:00:20.7]} 60. Ka6 {[%clk 0:00:42.2]} 60... Kd7 {[%clk
0:00:16.9]} 61. a8=Q {[%clk 0:00:39.9]} 61... Qa4+ {[%clk 0:00:17.6]} 62. Kb7
{[%clk 0:00:40.9]} 62... Qc6+ {[%clk 0:00:18.6]} 63. Ka7 {[%clk 0:00:41.5]}
63... Qa4+ {[%clk 0:00:18.6]} 64. Kb8 {[%clk 0:00:41.9]} 64... Qxa8+ {[%clk
0:00:11.2]} 65. Kxa8 {[%clk 0:00:42.9]} 65... Kd6 {[%clk 0:00:13.1]} 66. Rxf2
{[%clk 0:00:43.7]} 66... Kc5 {[%clk 0:00:15]} 67. Re2 {[%clk 0:00:45]} 1-0

[Event "*** Titled Tuesday Blitz"]
[Site "Chess.com"]
[Date "2020.01.07"]
[Round "5"]
[White "MiroMiljkovic"]
[Black "jlucasvf"]
[Result "1/2-1/2"]
[WhiteElo "2551"]
[BlackElo "2707"]
[TimeControl "180+2"]
[EndTime "14:11:00 PST"]
[Termination "Game drawn by agreement"]

1. d4 {[%clk 0:03:01.9]} 1... Nf6 {[%clk 0:02:58]} 2. c4 {[%clk 0:03:03.5]} 2...
e6 {[%clk 0:02:57.9]} 3. Nc3 {[%clk 0:03:05]} 3... Bb4 {[%clk 0:02:58.4]} 4. e3
{[%clk 0:03:06.6]} 4... O-O {[%clk 0:02:59.2]} 5. Bd3 {[%clk 0:03:08.2]} 5... c5
{[%clk 0:02:59]} 6. Nf3 {[%clk 0:03:09.5]} 6... d5 {[%clk 0:02:58.1]} 7. O-O
{[%clk 0:03:10.6]} 7... cxd4 {[%clk 0:02:55.8]} 8. exd4 {[%clk 0:03:11]} 8...
dxc4 {[%clk 0:02:57.1]} 9. Bxc4 {[%clk 0:03:12.9]} 9... b6 {[%clk 0:02:58.7]}
10. Qe2 {[%clk 0:03:13.4]} 10... Bb7 {[%clk 0:02:59.2]} 11. Rd1 {[%clk 0:03:15]}
11... Nbd7 {[%clk 0:02:59.1]} 12. d5 {[%clk 0:03:15.8]} 12... exd5 {[%clk
0:02:58.8]} 13. Nxd5 {[%clk 0:03:14.9]} 13... Nxd5 {[%clk 0:02:59.6]} 14. Bxd5
{[%clk 0:03:15.5]} 14... Bxd5 {[%clk 0:03:01.2]} 15. Rxd5 {[%clk 0:03:15.1]}
15... Qc7 {[%clk 0:02:48.8]} 16. Be3 {[%clk 0:02:45.5]} 16... Nf6 {[%clk
0:02:46.2]} 17. Rb5 {[%clk 0:02:23.4]} 17... Bd6 {[%clk 0:02:44.4]} 18. Rc1
{[%clk 0:02:19.6]} 18... Qb7 {[%clk 0:02:44.1]} 19. Bd4 {[%clk 0:02:03.8]} 19...
Rfe8 {[%clk 0:02:42.4]} 20. Qd3 {[%clk 0:01:53.4]} 20... Ne4 {[%clk 0:02:40.3]}
21. Be3 {[%clk 0:01:33.6]} 21... Rad8 {[%clk 0:02:39.9]} 22. Qb1 {[%clk
0:01:20.9]} 22... Qd7 {[%clk 0:02:31.7]} 23. a4 {[%clk 0:01:15.7]} 23... Bc5
{[%clk 0:02:30.2]} 24. Bxc5 {[%clk 0:00:37.3]} 24... Nxc5 {[%clk 0:02:32.1]} 25.
Qc2 {[%clk 0:00:38.4]} 25... Nd3 {[%clk 0:02:17.7]} 26. Rd1 {[%clk 0:00:34.2]}
26... Qe7 {[%clk 0:01:53.6]} 27. h3 {[%clk 0:00:34.3]} 27... Nf4 {[%clk
0:01:54.1]} 28. Re5 {[%clk 0:00:25.5]} 28... Qf6 {[%clk 0:01:51.6]} 29. Rxe8+
{[%clk 0:00:24.9]} 29... Rxe8 {[%clk 0:01:53.5]} 30. Qb3 {[%clk 0:00:14.6]}
30... h6 {[%clk 0:01:51.6]} 31. Qb5 {[%clk 0:00:13.9]} 31... Re6 {[%clk
0:01:47.6]} 32. a5 {[%clk 0:00:14.2]} 32... Nxh3+ {[%clk 0:01:47.9]} 33. gxh3
{[%clk 0:00:13.5]} 33... Qxf3 {[%clk 0:01:49]} 34. Rd8+ {[%clk 0:00:14.6]} 34...
Kh7 {[%clk 0:01:49.3]} 35. Qd3+ {[%clk 0:00:13.9]} 35... Qxd3 {[%clk 0:01:49.7]}
36. Rxd3 {[%clk 0:00:14.1]} 36... bxa5 {[%clk 0:01:50.5]} 37. Rd7 {[%clk
0:00:14.8]} 37... Kg6 {[%clk 0:01:18.5]} 38. Rxa7 {[%clk 0:00:16.2]} 38... Re5
{[%clk 0:01:19.9]} 39. Kg2 {[%clk 0:00:17]} 39... Kf6 {[%clk 0:01:19.8]} 40. Kg3
{[%clk 0:00:18.2]} 40... g6 {[%clk 0:01:20.6]} 41. h4 {[%clk 0:00:18.8]} 41...
Rb5 {[%clk 0:01:21.7]} 42. f3 {[%clk 0:00:19.4]} 42... Ke6 {[%clk 0:01:20.5]}
43. Ra6+ {[%clk 0:00:17.8]} 43... Kf5 {[%clk 0:01:17.3]} 44. Ra7 {[%clk
0:00:19.7]} 44... f6 {[%clk 0:01:18.4]} 45. Ra6 {[%clk 0:00:19.7]} 45... h5
{[%clk 0:01:18.8]} 46. Ra7 {[%clk 0:00:20.5]} 46... g5 {[%clk 0:01:20.1]} 47.
Ra6 {[%clk 0:00:21.1]} 47... gxh4+ {[%clk 0:01:01.7]} 48. Kxh4 {[%clk 0:00:23]}
48... Rxb2 {[%clk 0:01:02.5]} 49. Rxa5+ {[%clk 0:00:19.6]} 49... Kf4 {[%clk
0:01:03]} 50. Kxh5 {[%clk 0:00:18.6]} 50... Rg2 {[%clk 0:01:02]} 51. Ra3 {[%clk
0:00:17]} 51... f5 {[%clk 0:01:02.1]} 52. Rb3 {[%clk 0:00:14.1]} 52... Rg3
{[%clk 0:01:02.5]} 53. Rb5 {[%clk 0:00:10.2]} 53... Rxf3 {[%clk 0:00:50]} 54.
Kh4 {[%clk 0:00:11.5]} 54... Re3 {[%clk 0:00:47.4]} 55. Rb4+ {[%clk 0:00:10.2]}
55... Kf3 {[%clk 0:00:47.9]} 56. Kg5 {[%clk 0:00:10.1]} 56... Re4 {[%clk
0:00:44]} 57. Rb3+ {[%clk 0:00:10.3]} 57... Ke2 {[%clk 0:00:45.5]} 58. Kxf5
{[%clk 0:00:11.3]} 58... Ra4 {[%clk 0:00:46.9]} 59. Rb5 {[%clk 0:00:11.8]} 59...
Kd3 {[%clk 0:00:47.3]} 60. Re5 {[%clk 0:00:13.7]} 1/2-1/2

[Event "*** Titled Tuesday Blitz"]
[Site "Chess.com"]
[Date "2020.01.07"]
[Round "5"]
[White "ural58"]
[Black "SHIVACalypso"]
[Result "1-0"]
[WhiteElo "2352"]
[BlackElo "2225"]
[TimeControl "180+2"]
[EndTime "14:11:09 PST"]
[Termination "ural58 won by resignation"]

1. e4 {[%clk 0:02:59.7]} 1... e6 {[%clk 0:03:00.9]} 2. Qe2 {[%clk 0:02:52.4]}
2... c5 {[%clk 0:03:00.5]} 3. b3 {[%clk 0:02:47.4]} 3... Nc6 {[%clk 0:03:01]} 4.
Bb2 {[%clk 0:02:40.1]} 4... e5 {[%clk 0:03:01.8]} 5. f4 {[%clk 0:02:40.4]} 5...
d6 {[%clk 0:03:02.4]} 6. Qf2 {[%clk 0:02:40.6]} 6... g6 {[%clk 0:03:00.5]} 7.
Bb5 {[%clk 0:02:35.4]} 7... f6 {[%clk 0:02:34]} 8. Bxc6+ {[%clk 0:02:31.7]} 8...
bxc6 {[%clk 0:02:35.9]} 9. Na3 {[%clk 0:02:29.5]} 9... Bg7 {[%clk 0:02:34.9]}
10. O-O-O {[%clk 0:02:28.1]} 10... Ne7 {[%clk 0:02:32.3]} 11. Nc4 {[%clk
0:02:29.1]} 11... d5 {[%clk 0:02:29.1]} 12. fxe5 {[%clk 0:02:22.8]} 12... dxc4
{[%clk 0:02:28]} 13. exf6 {[%clk 0:02:19.8]} 13... Rf8 {[%clk 0:02:27.8]} 14.
fxe7 {[%clk 0:02:05.9]} 14... Qxe7 {[%clk 0:02:29.7]} 15. Nf3 {[%clk 0:02:00.2]}
15... cxb3 {[%clk 0:02:25.4]} 16. axb3 {[%clk 0:01:40.8]} 16... Bxb2+ {[%clk
0:02:16.1]} 17. Kxb2 {[%clk 0:01:27.4]} 17... a5 {[%clk 0:02:18]} 18. Ra1 {[%clk
0:01:23.2]} 18... Be6 {[%clk 0:02:16.4]} 19. Ra4 {[%clk 0:01:13]} 19... c4
{[%clk 0:02:13.4]} 20. Rha1 {[%clk 0:00:56.6]} 20... cxb3 {[%clk 0:02:12.7]} 21.
c3 {[%clk 0:00:57.2]} 21... Qc7 {[%clk 0:02:06.8]} 22. Qc5 {[%clk 0:00:54.2]}
22... Rd8 {[%clk 0:01:59.9]} 23. Qxa5 {[%clk 0:00:36.5]} 23... Qf4 {[%clk
0:01:31.8]} 24. Rd4 {[%clk 0:00:27.4]} 24... Rxd4 {[%clk 0:01:26.6]} 25. cxd4
{[%clk 0:00:28.5]} 25... Qxe4 {[%clk 0:01:25.9]} 26. Qc5 {[%clk 0:00:21.4]}
26... Qc2+ {[%clk 0:00:47.9]} 27. Qxc2 {[%clk 0:00:22.3]} 27... bxc2 {[%clk
0:00:49.8]} 28. Kxc2 {[%clk 0:00:23.8]} 28... Bd5 {[%clk 0:00:51.7]} 29. Ra8+
{[%clk 0:00:22.8]} 29... Ke7 {[%clk 0:00:51.6]} 30. Rxf8 {[%clk 0:00:24.7]}
30... Kxf8 {[%clk 0:00:53.4]} 31. Ne1 {[%clk 0:00:18.4]} 31... Ke7 {[%clk
0:00:53.8]} 32. Kd3 {[%clk 0:00:20]} 32... Ke6 {[%clk 0:00:51.9]} 33. Ke3 {[%clk
0:00:21.9]} 33... Kf5 {[%clk 0:00:52.5]} 34. g3 {[%clk 0:00:23.4]} 34... Kg4
{[%clk 0:00:53]} 35. Kf2 {[%clk 0:00:24.6]} 35... Kh3 {[%clk 0:00:52.2]} 36. Kg1
{[%clk 0:00:25.6]} 36... Be4 {[%clk 0:00:53.2]} 37. d3 {[%clk 0:00:26.2]} 37...
Bf5 {[%clk 0:00:53.1]} 38. Ng2 {[%clk 0:00:27.2]} 38... g5 {[%clk 0:00:48.6]}
39. Ne3 {[%clk 0:00:20]} 39... Bxd3 {[%clk 0:00:46.6]} 40. Nd1 {[%clk
0:00:21.9]} 40... Kg4 {[%clk 0:00:36.3]} 41. Nf2+ {[%clk 0:00:23.8]} 41... Kf3
{[%clk 0:00:38.2]} 42. Nxd3 {[%clk 0:00:21]} 42... Ke3 {[%clk 0:00:34.9]} 43.
Ne5 {[%clk 0:00:22.1]} 43... Kxd4 {[%clk 0:00:35]} 44. Nxc6+ {[%clk 0:00:23.2]}
44... Ke4 {[%clk 0:00:34.9]} 45. Kg2 {[%clk 0:00:22.5]} 45... h5 {[%clk
0:00:35.7]} 46. h3 {[%clk 0:00:17.8]} 46... Ke3 {[%clk 0:00:33.4]} 47. Ne5
{[%clk 0:00:17.6]} 47... Ke4 {[%clk 0:00:34.3]} 48. Nf7 {[%clk 0:00:13.4]} 48...
Kf5 {[%clk 0:00:34.9]} 49. Nd6+ {[%clk 0:00:13.1]} 49... Ke5 {[%clk 0:00:35.2]}
50. Nc4+ {[%clk 0:00:13.5]} 50... Kd4 {[%clk 0:00:34.4]} 51. Nd2 {[%clk
0:00:15.4]} 51... Ke3 {[%clk 0:00:35.1]} 52. Nf3 {[%clk 0:00:14.5]} 52... g4
{[%clk 0:00:34.4]} 53. hxg4 {[%clk 0:00:16.4]} 53... hxg4 {[%clk 0:00:35.9]} 54.
Nh2 {[%clk 0:00:13.2]} 54... Ke4 {[%clk 0:00:37.8]} 55. Nxg4 {[%clk 0:00:14.8]}
55... Kf5 {[%clk 0:00:39.5]} 56. Nf2 {[%clk 0:00:16.7]} 56... Kg5 {[%clk
0:00:40.6]} 57. Kf3 {[%clk 0:00:18.6]} 57... Kf5 {[%clk 0:00:41]} 58. g4+ {[%clk
0:00:19]} 58... Kg5 {[%clk 0:00:42.3]} 59. Ne4+ {[%clk 0:00:20.9]} 59... Kg6
{[%clk 0:00:42.7]} 60. Kf4 {[%clk 0:00:22.8]} 60... Kh6 {[%clk 0:00:44]} 61. g5+
{[%clk 0:00:24.7]} 61... Kg6 {[%clk 0:00:45.8]} 62. Kg4 {[%clk 0:00:16.7]} 62...
Kh7 {[%clk 0:00:47.7]} 63. Kf5 {[%clk 0:00:12]} 63... Kg7 {[%clk 0:00:38.6]} 64.
g6 {[%clk 0:00:13.9]} 64... Kf8 {[%clk 0:00:38.4]} 65. Kg5 {[%clk 0:00:15.8]}
65... Kg8 {[%clk 0:00:39.9]} 66. Kf6 {[%clk 0:00:16.9]} 66... Kh8 {[%clk
0:00:39.9]} 67. Ng5 {[%clk 0:00:18.8]} 67... Kg8 {[%clk 0:00:40.9]} 68. Ne6
{[%clk 0:00:20]} 68... Kh8 {[%clk 0:00:41]} 69. Ng5 {[%clk 0:00:19]} 69... Kg8
{[%clk 0:00:42.2]} 70. Nf7 {[%clk 0:00:20.1]} 70... Kf8 {[%clk 0:00:42.4]} 71.
g7+ {[%clk 0:00:21.3]} 71... Kg8 {[%clk 0:00:44.3]} 72. Nh6+ {[%clk 0:00:22.8]}
1-0